fUST/lending_fUST_20240820
["ID","MTS","AMOUNT","RATE_DAILY","PERIOD"]
[335376046,1724166648810,-643.1,0.00023361,2]
[335376047,1724166648823,-188.9,0.00023361,2]
[335376048,1724166648832,-500.0,0.0002349,2]
[335376049,1724166648841,-160.0,0.00023493,3]
[335376050,1724166648851,-220.63011884,0.000235,7]
[335376051,1724166648860,-453.50239903,0.0002354,4]
[335376052,1724166648870,-453.50239903,0.0002376,4]
[335376053,1724166648879,-500.0,0.00023764,2]
[335376054,1724166648889,-5283.53,0.000238,14]
[335376055,1724166648898,-151.0,0.0002398,7]
[335376056,1724166648908,-456.89891194,0.0002398,4]
[335376057,1724166648918,-500.0,0.00024038,2]
[335376059,1724166648928,-172.0,0.00024164,2]
[335376061,1724166648937,-1752.5,0.000242,31]
[335376063,1724166648948,-1752.5,0.000242,31]
[335376065,1724166648957,-1752.5,0.000242,31]
[335376067,1724166648966,-1752.5,0.000242,31]
[335376069,1724166648976,-1752.5,0.000242,31]
[335376070,1724166648986,-1752.5,0.000242,31]
[335376072,1724166648995,-1752.5,0.000242,31]
[335376074,1724166649004,-1752.5,0.000242,31]
[335376076,1724166649015,-1752.5,0.000242,31]
[335376078,1724166649027,-1752.5,0.000242,31]
[335376080,1724166649036,-1752.5,0.000242,31]
[335376083,1724166649048,-1752.5,0.000242,31]
[335376085,1724166649057,-1752.5,0.000242,31]
[335376086,1724166649068,-1752.5,0.000242,31]
[335376089,1724166649077,-1752.5,0.000242,31]
[335376090,1724166649086,-1752.5,0.000242,31]
[335376092,1724166649096,-1752.5,0.000242,31]
[335376095,1724166649106,-1752.5,0.000242,31]
[335376097,1724166649117,-1752.5,0.000242,31]
[335376099,1724166649126,-1752.5,0.000242,31]
[335376100,1724166649137,-1752.5,0.000242,31]
[335376102,1724166649146,-1752.5,0.000242,31]
[335376104,1724166649156,-1752.5,0.000242,31]
[335376106,1724166649165,-1752.5,0.000242,31]
[335376108,1724166649175,-555.66405176,0.00024286,2]
[335376110,1724166649185,-643.1,0.00024296,2]
[335376112,1724166649194,-188.9,0.00024296,2]
[335376114,1724166649204,-500.0,0.00024312,2]
[335376116,1724166649214,-3050.53754688,0.00024314,2]
[335376119,1724166649224,-35733.75542573,0.00024395,2]
[335376121,1724166649234,-35733.75542573,0.00024395,2]
[335376123,1724166649244,-151.0,0.000244,7]
[335376125,1724166649254,-60948.29,0.000244,14]
[335376127,1724166649267,-155.12080504,0.00024569,2]
[335376129,1724166649279,-500.0,0.00024586,2]
[335376131,1724166649291,-1830.04600683,0.00024637,2]
[335376133,1724166649301,-500.0,0.00024658,2]
[335376135,1724166649312,-380.0,0.00024658,2]
[335376137,1724166649325,-200.0,0.00024658,2]
[335376139,1724166649335,-200.0,0.00024658,15]
[335376141,1724166649344,-639.550841,0.00024688,2]
[335376143,1724166649354,-154.63660398,0.0002469,2]
[335376145,1724166649365,-154.63660398,0.0002469,2]
[335376147,1724166649375,-349.1,0.000247,7]
[335376149,1724166649386,-174.63720972,0.00024756,2]
[335376151,1724166649396,-159.23515159,0.00024756,2]
[335376153,1724166649405,-151.0,0.00024802,7]
[335376155,1724166649416,-500.0,0.0002486,2]
[335376157,1724166649425,-7712.46483926,0.00024866,2]
[335376159,1724166649435,-154.71377951,0.00024912,2]
[335376161,1724166649446,-3083.26625956,0.00024921,60]
[335376163,1724166649455,-154.76012181,0.00025,2]
[335376165,1724166649465,-300.0,0.00025,2]
[335376167,1724166649475,-300.0,0.00025,2]
[335376169,1724166649485,-224.399999,0.00025,2]
[335376171,1724166649496,-165.0,0.00025,2]
[335376173,1724166649506,-308.19214429,0.00025,2]
[335376175,1724166649516,-277.92028119,0.00025,30]
[335376178,1724166649527,-165.0,0.00025,2]
[335376180,1724166649538,-258.18032213,0.00025,120]
[335376182,1724166649548,-1000.0,0.00025,25]
[335376184,1724166649559,-503.89155448,0.00025,2]
[335376186,1724166649573,-217.64702912,0.00025097,2]
[335376188,1724166649583,-10003.90066576,0.00025097,2]
[335376190,1724166649592,-154.65203293,0.00025097,2]
[335376192,1724166649602,-271.56079623,0.00025097,2]
[335376194,1724166649612,-680.97271542,0.00025114,2]
[335376196,1724166649622,-500.0,0.00025134,2]
[335376198,1724166649632,-153.0,0.00025151,2]
[335376200,1724166649642,-153.0,0.00025151,2]
[335376202,1724166649652,-153.0,0.00025151,2]
[335376204,1724166649664,-153.0,0.00025151,2]
[335376206,1724166649674,-153.0,0.00025151,2]
[335376208,1724166649684,-153.0,0.00025151,2]
[335376210,1724166649694,-153.0,0.00025151,2]
[335376212,1724166649705,-151.0,0.000252,7]
[335376214,1724166649714,-252.771361,0.000252,7]
[335376216,1724166649724,-252.771361,0.000252,7]
[335376218,1724166649734,-151.0,0.000252,7]
[335376221,1724166649745,-154.71377951,0.00025211,2]
[335376223,1724166649755,-643.1,0.00025232,2]
[335376225,1724166649765,-188.9,0.00025232,2]
[335376227,1724166649776,-503.89155448,0.0002525,2]
[335376229,1724166649785,-1752.5,0.000254,31]
[335376231,1724166649795,-1752.5,0.000254,31]
[335376233,1724166649808,-1752.5,0.000254,31]
[335376235,1724166649819,-1752.5,0.000254,31]
[335376237,1724166649829,-1752.5,0.000254,31]
[335376239,1724166649839,-1752.5,0.000254,31]
[335376241,1724166649849,-1752.5,0.000254,31]
[335376243,1724166649858,-1752.5,0.000254,31]
[335376245,1724166649868,-1752.5,0.000254,31]
[335376247,1724166649879,-1752.5,0.000254,31]
[335376249,1724166649889,-1752.5,0.000254,31]
[335376251,1724166649899,-1752.5,0.000254,31]
[335376253,1724166649908,-1752.5,0.000254,31]
[335376255,1724166649918,-1752.5,0.000254,31]
[335376257,1724166649927,-1752.5,0.000254,31]
[335376259,1724166649938,-1752.5,0.000254,31]
[335376261,1724166649949,-1752.5,0.000254,31]
[335376263,1724166649960,-1752.5,0.000254,31]
[335376266,1724166649972,-1752.5,0.000254,31]
[335376268,1724166649982,-1752.5,0.000254,31]
[335376270,1724166649992,-1752.5,0.000254,31]
[335376272,1724166650002,-1752.5,0.000254,31]
[335376274,1724166650014,-1752.5,0.000254,31]
[335376276,1724166650024,-1752.5,0.000254,31]
[335376278,1724166650033,-500.0,0.00025408,2]
[335376280,1724166650043,-503.89155448,0.000255,2]
[335376282,1724166650052,-198.29562586,0.00025599,2]
[335376284,1724166650062,-500.0,0.00025682,2]
[335376286,1724166650074,-503.89155448,0.0002575,2]
[335376288,1724166650082,-339.62098369,0.00025956,2]
[335376290,1724166650091,-300.0,0.00026,2]
[335376292,1724166650100,-232.11968218,0.00026,120]
[335376293,1724166650110,-503.89155448,0.00026,2]
[335376295,1724166650119,-5283.53,0.00026,14]
[335376297,1724166650129,-160.0,0.00026051,4]
[335376299,1724166650138,-160.0,0.00026051,5]
[335376302,1724166650150,-1932.186094,0.000261,2]
[335376304,1724166650162,-7726.0,0.00026138,2]
[335376306,1724166650172,-643.1,0.00026167,2]
[335376308,1724166650181,-188.9,0.00026167,2]
[335376310,1724166650190,-605.45265382,0.0002625,2]
[335376312,1724166650201,-305.246874,0.00026388,2]
[335376314,1724166650211,-478.77,0.0002656,120]
[335376316,1724166650223,-478.771,0.0002656,120]
[335376319,1724166650233,-478.771,0.0002656,120]
[335376321,1724166650244,-478.771,0.0002656,120]
[335376323,1724166650254,-478.771,0.0002656,120]
[335376325,1724166650263,-150.0,0.00026599,2]
[335376327,1724166650273,-1752.5,0.000266,31]
[335376329,1724166650282,-1752.5,0.000266,31]
[335376331,1724166650296,-1752.5,0.000266,31]
[335376333,1724166650306,-1752.5,0.000266,31]
[335376335,1724166650316,-1752.5,0.000266,31]
[335376337,1724166650327,-1752.5,0.000266,31]
[335376339,1724166650336,-1752.5,0.000266,31]
[335376341,1724166650346,-1752.5,0.000266,31]
[335376343,1724166650357,-1752.5,0.000266,31]
[335376345,1724166650370,-1752.5,0.000266,31]
[335376347,1724166650380,-1752.5,0.000266,31]
[335376349,1724166650391,-1752.5,0.000266,31]
[335376352,1724166650401,-1000.0,0.000266,2]
[335376353,1724166650411,-60948.29,0.000269,14]
[335376356,1724166650421,-300.0,0.00027,2]
[335376358,1724166650431,-1000.0,0.00027,27]
[335376360,1724166650443,-349.1,0.00027,7]
[335376362,1724166650453,-246.76831466,0.0002703,2]
[335376364,1724166650463,-151.0,0.000271,7]
[335376366,1724166650473,-151.0,0.000271,7]
[335376368,1724166650482,-150.0,0.000271,2]
[335376370,1724166650491,-193.172961,0.000271,7]
[335376372,1724166650501,-264.291902,0.000271,7]
[335376374,1724166650510,-193.172961,0.000271,7]
[335376376,1724166650521,-151.0,0.000271,7]
[335376378,1724166650530,-162.435199,0.000271,7]
[335376380,1724166650540,-162.435199,0.000271,7]
[335376382,1724166650550,-151.0,0.000271,7]
[335376384,1724166650559,-1000.0,0.000271,2]
[335376387,1724166650569,-377.8277,0.000271,2]
[335376388,1724166650578,-377.8277,0.000271,2]
[335376390,1724166650587,-673.07858906,0.00027101,2]
[335376392,1724166650596,-643.1,0.00027102,2]
[335376394,1724166650605,-188.9,0.00027102,2]
[335376396,1724166650614,-624.992272,0.00027167,2]
[335376398,1724166650624,-1000.0,0.00027397,2]
[335376400,1724166650633,-1003.99463596,0.00027397,2]
[335376402,1724166650642,-1000.0,0.00027397,2]
[335376405,1724166650653,-1000.0,0.00027397,2]
[335376407,1724166650664,-1000.0,0.00027397,2]
[335376409,1724166650675,-500.0,0.00027397,2]
[335376411,1724166650686,-500.0,0.00027397,2]
[335376413,1724166650697,-234.02837115,0.00027397,2]
[335376415,1724166650707,-151.0,0.00027397,7]
[335376417,1724166650717,-151.0,0.00027397,7]
[335376419,1724166650727,-151.0,0.00027397,7]
[335376421,1724166650736,-150.0,0.00027599,2]
[335376424,1724166650746,-596.7864113,0.00027616,2]
[335376426,1724166650756,-300.0,0.00028,2]
[335376428,1724166650765,-4900.0,0.00028,2]
[335376430,1724166650774,-150.0,0.000281,2]
[335376432,1724166650784,-7712.46483926,0.00028211,2]
[335376434,1724166650794,-150.0,0.00028599,2]
[335376436,1724166650804,-151.0,0.000286,7]
[335376438,1724166650813,-200.0,0.00028772,120]
[335376440,1724166650830,-26740.0,0.000288,2]
[335376442,1724166650840,-151.0,0.000288,7]
[335376444,1724166650851,-300.0,0.00029,2]
[335376446,1724166650860,-1000.0,0.00029,29]
[335376447,1724166650870,-5283.53,0.00029,14]
[335376449,1724166650881,-7726.0,0.00029138,2]
[335376451,1724166650891,-1000.0,0.000295,2]
[335376453,1724166650901,-155.12080504,0.00029569,2]
[335376455,1724166650912,-150.0,0.00029599,2]
[335376457,1724166650922,-153.0,0.000296,2]
[335376459,1724166650931,-153.0,0.00029602,2]
[335376461,1724166650941,-153.0,0.00029624,2]
[335376463,1724166650952,-153.0,0.00029625,2]
[335376465,1724166650962,-153.0,0.00029645,2]
[335376467,1724166650974,-153.0,0.00029647,2]
[335376469,1724166650983,-60948.29,0.000297,14]
[335376471,1724166650993,-200.0,0.00029719,120]
[335376473,1724166651002,-151.0,0.000299,7]
[335376474,1724166651012,-349.1,0.000299,7]
[335376476,1724166651022,-13192.7118222,0.0003,30]
[335376478,1724166651033,-285.29534809,0.0003,3]
[335376480,1724166651043,-194.05,0.0003,120]
[335376482,1724166651053,-213.13462624,0.0003,30]
[335376484,1724166651062,-154.68290005,0.0003,4]
[335376486,1724166651084,-1500.0,0.0003,2]
[335376488,1724166651094,-600.0,0.0003,30]
[335376490,1724166651104,-1023.0,0.0003,30]
[335376492,1724166651114,-300.0,0.0003,2]
[335376494,1724166651124,-180.41900139,0.0003,5]
[335376496,1724166651136,-2500.0,0.0003,30]
[335376498,1724166651146,-151.0,0.0003,120]
[335376500,1724166651156,-501.0,0.0003,4]
[335376503,1724166651166,-264.0,0.0003,120]
[335376504,1724166651175,-315.18020439,0.0003,4]
[335376506,1724166651185,-1169.0,0.0003,2]
[335376508,1724166651195,-261.0,0.0003,2]
[335376510,1724166651205,-271.64486807,0.0003,2]
[335376511,1724166651215,-172.0,0.00030447,2]
[335376513,1724166651225,-150.0,0.00030599,2]
[335376515,1724166651237,-306.571487,0.00030849,2]
[335376516,1724166651247,-1000.0,0.00031,31]
[335376517,1724166651257,-7712.46483926,0.00031555,2]
[335376518,1724166651267,-150.0,0.00031599,2]
[335376520,1724166651277,-167.0,0.0003197,2]
[335376521,1724166651287,-7726.0,0.00032138,2]
[335376523,1724166651302,-2515.0,0.000325,30]
[335376525,1724166651312,-117880.14689914,0.000325,60]
[335376527,1724166651330,-151.0,0.000325,7]
[335376528,1724166651451,-151.0,0.000325,7]
[335376529,1724166651462,-252.771361,0.000325,7]
[335376530,1724166651472,-252.771361,0.000325,7]
[335376532,1724166651482,-151.0,0.000325,7]
[335376534,1724166651491,-150.0,0.00032599,2]
[335376536,1724166651500,-158.336649,0.00032877,7]
[335376538,1724166651510,-158.336649,0.00032877,7]
[335376540,1724166651519,-158.336649,0.00032877,7]
[335376542,1724166651529,-158.336649,0.00032877,7]
[335376544,1724166651539,-176.8102754,0.00033,120]
[335376546,1724166651550,-11510.093154,0.00033,120]
[335376548,1724166651560,-1000.0,0.00033,33]
[335376549,1724166651575,-60948.29,0.00033,14]
[335376550,1724166651584,-261.0,0.00033,2]
[335376551,1724166651594,-261.0,0.00033,2]
[335376552,1724166651603,-305.246874,0.00033598,2]
[335376553,1724166651612,-150.0,0.00033599,2]
[335376554,1724166651622,-624.992272,0.00033626,2]
[335376555,1724166651632,-13412.68587795,0.00034,30]
[335376567,1724166651785,-1134.447891,0.00034,30]
[335376569,1724166651798,-3812.8679606,0.00034,30]
[335376572,1724166651811,-1841.2358814,0.00034,30]
[335376574,1724166651825,-527.61554598,0.00034,5]
[335376576,1724166651834,-153.0,0.00034055,2]
[335376577,1724166651844,-153.0,0.00034055,2]
[335376579,1724166651853,-153.0,0.00034055,2]
[335376581,1724166651862,-153.0,0.00034055,2]
[335376583,1724166651880,-153.0,0.00034055,2]
[335376585,1724166651891,-153.0,0.00034055,2]
[335376587,1724166651901,-153.0,0.00034055,2]
[335376589,1724166651911,-153.0,0.00034055,2]
[335376591,1724166651921,-153.0,0.00034055,2]
[335376593,1724166651930,-153.0,0.00034055,2]
[335376595,1724166651941,-153.0,0.00034055,2]
[335376597,1724166651951,-153.0,0.00034055,2]
[335376598,1724166651963,-153.0,0.00034055,2]
[335376599,1724166651973,-149.999999,0.000341,120]
[335376600,1724166651985,-151.0,0.000341,7]
[335376601,1724166651996,-151.0,0.000341,7]
[335376602,1724166652006,-193.172961,0.000341,7]
[335376603,1724166652016,-193.172961,0.000341,7]
[335376604,1724166652026,-162.435199,0.000341,7]
[335376605,1724166652035,-162.435199,0.000341,7]
[335376606,1724166652045,-158.336649,0.000341,7]
[335376607,1724166652056,-158.336649,0.000341,7]
[335376608,1724166652065,-151.0,0.000341,7]
[335376609,1724166652082,-151.0,0.0003417,7]
[335376610,1724166652095,-306.0,0.00034192,2]
[335376611,1724166652104,-207.6000865,0.00034192,2]
[335376612,1724166652113,-153.0,0.00034192,2]
[335376613,1724166652123,-207.6000865,0.00034192,2]
[335376614,1724166652132,-207.6000865,0.00034192,2]
[335376615,1724166652141,-153.0,0.00034192,2]
[335376616,1724166652151,-153.0,0.00034192,2]
[335376617,1724166652162,-153.0,0.00034192,2]
[335376618,1724166652172,-153.0,0.00034192,2]
[335376619,1724166652181,-153.0,0.00034192,2]
[335376620,1724166652191,-271.546404,0.00034192,2]
[335376621,1724166652201,-153.0,0.00034192,2]
[335376622,1724166652211,-153.0,0.00034192,2]
[335376623,1724166652220,-153.0,0.00034192,2]
[335376624,1724166652230,-153.0,0.00034192,2]
[335376625,1724166652240,-153.0,0.00034192,2]
[335376626,1724166652249,-153.0,0.00034192,2]
[335376627,1724166652258,-153.0,0.00034192,2]
[335376628,1724166652268,-153.0,0.00034192,2]
[335376629,1724166652280,-349.1,0.000342,30]
[335376630,1724166652291,-1000.0,0.000345,2]
[335376631,1724166652301,-500.0,0.000345,120]
[335376632,1724166652311,-155.12080504,0.00034569,9]
[335376633,1724166652323,-150.0,0.00034599,2]
[335376634,1724166652332,-4640.0,0.00034699,2]
[335376635,1724166652341,-4640.0,0.00034699,2]
[335376636,1724166652350,-4640.0,0.00034699,2]
[335376637,1724166652361,-3943.69148707,0.00034699,2]
[335376638,1724166652423,-500.0,0.00019654,2]
[335376639,1724166652432,-500.0,0.00019654,2]
[335376640,1724166652442,-500.0,0.00019654,2]
[335376641,1724166652451,-500.0,0.00019928,2]
[335376642,1724166652461,-506.03153066,0.00019928,2]
[335376643,1724166652471,-500.0,0.00020202,2]
[335376644,1724166652480,-500.0,0.00020476,2]
[335376645,1724166652491,-696.30851293,0.00034699,2]
[335376646,1724166652500,-4640.0,0.00034699,2]
[335376647,1724166652510,-4640.0,0.00034699,2]
[335376648,1724166652519,-4640.0,0.00034699,2]
[335376649,1724166652528,-4640.0,0.00034699,2]
[335376650,1724166652538,-4640.0,0.00034699,2]
[335376651,1724166652547,-4640.0,0.00034699,2]
[335376652,1724166652556,-151.0,0.000347,7]
[335376653,1724166652566,-151.0,0.000347,7]
[335376654,1724166652579,-151.0,0.000347,7]
[335376655,1724166652588,-105223.46101717,0.000347,30]
[335376656,1724166652597,-21278.21370129,0.00034766,90]
[335376657,1724166652606,-1000.0,0.000348,30]
[335376658,1724166652616,-1000.0,0.000348,50]
[335376659,1724166652625,-1018.66,0.000348,60]
[335376660,1724166652635,-1000.0,0.000348,3]
[335376661,1724166652644,-1000.0,0.000348,3]
[335376662,1724166652653,-1000.0,0.000348,3]
[335376663,1724166652663,-5903.97048,0.000348,7]
[335376664,1724166652673,-5903.97048,0.000348,7]
[335376665,1724166652682,-151.0,0.000348,7]
[335376666,1724166652692,-27475.34613258,0.000349,2]
[335376667,1724166652702,-7712.46483926,0.000349,2]
[335376668,1724166652712,-20641.85637124,0.00034999,3]
[335376669,1724166652722,-151.0,0.00034999,7]
[335376670,1724166652731,-151.0,0.00034999,7]
[335376671,1724166652741,-252.771361,0.00034999,7]
[335376672,1724166652751,-252.771361,0.00034999,7]
[335376673,1724166652761,-151.0,0.00034999,7]
[335376674,1724166652771,-531550.03575402,0.00035,30]
[335376675,1724166652783,-452.0299783,0.00035,30]
[335376676,1724166653502,-11804.804228,0.00035,30]
[335376677,1724166653586,-500.0,0.00016438,2]
[335376678,1724166653596,-500.0,0.00016438,2]
[335376679,1724166653605,-500.0,0.00016712,2]
[335376680,1724166653614,-500.0,0.00019654,2]
[335376681,1724166653623,-500.0,0.00019928,2]
[335376682,1724166653633,-500.0,0.00020202,2]
[335376683,1724166653645,-500.0,0.0002075,2]
[335376684,1724166653655,-500.0,0.00021024,2]
[335376685,1724166653665,-500.0,0.00021298,2]
[335376686,1724166653676,-500.0,0.00021572,2]
[335376687,1724166653686,-162.0,0.00021846,2]
[335376688,1724166653696,-3386.97037397,0.00035,30]
[335376689,1724166653709,-29480.914852,0.00035,30]
[335376690,1724166653720,-37541.05674457,0.00035,30]
[335376691,1724166653744,-106998.89100024,0.00035,30]
[335376692,1724166653757,-5804.84871922,0.00035,30]
[335376693,1724166653770,-179079.24079295,0.00035,30]
[335376694,1724166653822,-569.6147727,0.00013792,2]
[335376695,1724166653834,-143.19880502,0.00019654,2]
[335376696,1724166653864,-246.23511805,0.00016438,2]
[335376697,1724166653874,-356.80119498,0.00019654,2]
[335376698,1724166653886,-242.84,0.00020476,2]
[335376699,1724166653897,-684.63738475,0.000215,2]
[335376700,1724166653906,-435.0,0.00022757,2]
[335376701,1724166653917,-639.550841,0.00024688,2]
[335376702,1724166653927,-154.0822723,0.00030219,2]
[335376703,1724166653937,-111577.97704968,0.00035,30]
[335376704,1724166653973,-2017.415484,0.00035,30]
[335376705,1724166653985,-589.5,0.00035,30]
[335376706,1724166656928,-36329.964144,0.00035,30]
[335376729,1724167790236,24900.0,7.397e-05,2]
[335376783,1724167832198,-300.0,9.938e-05,2]
[335376785,1724167832211,-300.0,9.938e-05,2]
[335376788,1724167832224,-1621.63658492,9.939e-05,2]
[335376837,1724167838213,-507.31054834,9.939e-05,2]
[335376839,1724167838225,-726.88,9.939e-05,2]
[335376841,1724167838259,-52622.19338342,9.939e-05,2]
[335376842,1724167838268,-55478.02051668,9.939e-05,2]
[335376843,1724167838278,-420.0,0.00010932,2]
[335376844,1724167838287,-420.0,0.00010932,2]
[335376845,1724167838297,-42415.91084593,0.00011712,2]
[335376846,1724167838306,-20797.12874944,0.00011842,2]
[335376847,1724167838316,-7014.13255051,0.00011842,2]
[335376848,1724167838326,-2128.20708812,0.00011999,2]
[335376849,1724167838337,-584.66360542,0.00011999,2]
[335376850,1724167838349,-587.0,0.00012025,2]
[335376851,1724167838359,-587.0,0.00012025,2]
[335376852,1724167838368,-396.27343154,0.000123,2]
[335376853,1724167838378,-7921.44686656,0.000125,2]
[335376855,1724167838387,-2128.24653365,0.00012551,2]
[335376856,1724167838396,-1500.0,0.00012551,2]
[335376859,1724167838406,-68599.5153394,0.00012569,2]
[335376862,1724167838415,-8595.48375369,0.00012579,2]
[335376864,1724167838425,-2282.67176676,0.00012629,3]
[335376867,1724167838434,-156.63348559,0.00012679,2]
[335376869,1724167838444,-8845.25511796,0.00012779,2]
[335376870,1724167838453,-404.47284307,0.00012779,2]
[335376871,1724167838462,-780.13119624,0.00012782,2]
[335376872,1724167838471,-569.6147727,0.00012886,2]
[335376873,1724167838481,-601.94985179,0.00012898,2]
[335376874,1724167838491,-154.54409492,0.00012898,2]
[335376875,1724167838501,-154.54409492,0.00012898,2]
[335376876,1724167838511,-413.70707529,0.00012898,2]
[335376877,1724167838521,-320.30409158,0.00012898,2]
[335376878,1724167838531,-27623.46856315,0.000129,2]
[335376879,1724167838542,-493.36312925,0.00012971,2]
[335376880,1724167838553,-246.76831466,0.00012971,2]
[335376881,1724167838564,-200.0,0.00012973,2]
[335376882,1724167838576,-154.54409492,0.00012999,2]
[335376883,1724167838586,-301.56944091,0.00012999,2]
[335376884,1724167838599,-153.540028,0.00013,2]
[335376885,1724167838610,-521.35824671,0.00013025,2]
[335376886,1724167838620,-823.0,0.00013227,2]
[335376887,1724167838631,-823.0,0.00013227,2]
[335376888,1724167838640,-68599.5153394,0.00013509,2]
[335376889,1724167838652,-8595.48375368,0.00013519,2]
[335376890,1724167838666,-9660.2899886,0.00013599,2]
[335376891,1724167838676,-616.17364632,0.00013599,2]
[335376892,1724167838686,-9660.2899886,0.00013599,2]
[335376893,1724167838698,-200.0,0.00013673,2]
[335376894,1724167838709,-200.0,0.00013673,2]
[335376895,1724167838719,-158.1221147,0.00013688,2]
[335376896,1724167838731,-68599.5153394,0.00013689,2]
[335376897,1724167838741,-68599.5153394,0.00013689,2]
[335376898,1724167838752,-223.54518659,0.00013697,2]
[335376899,1724167838763,-3092.99892406,0.00013697,2]
[335376900,1724167838774,-810.66321171,0.00013697,2]
[335376901,1724167838786,-157.11235205,0.00013697,2]
[335376902,1724167838797,-811.47145884,0.00013697,2]
[335376903,1724167838807,-154.79103211,0.00013697,2]
[335376904,1724167838819,-495.19490276,0.00013697,2]
[335376905,1724167838829,-1613.61724275,0.00013697,2]
[335376906,1724167838840,-245.84224346,0.00013698,2]
[335376907,1724167838851,-500.0,0.00013698,2]
[335376908,1724167838861,-500.0,0.00013698,2]
[335376909,1724167838872,-500.0,0.00013698,2]
[335376910,1724167838884,-500.0,0.00013698,2]
[335376911,1724167838897,-500.0,0.00013698,2]
[335376912,1724167838907,-500.0,0.00013698,2]
[335376913,1724167838917,-482.75743065,0.00013698,2]
[335376914,1724167838927,-500.0,0.00013698,2]
[335376915,1724167838938,-500.0,0.00013698,2]
[335376916,1724167838950,-500.0,0.00013698,2]
[335376917,1724167838959,-500.0,0.00013698,2]
[335376918,1724167838969,-500.0,0.00013698,2]
[335376919,1724167838979,-500.0,0.00013698,2]
[335376920,1724167838989,-194.2867556,0.00013698,2]
[335376921,1724167838999,-500.0,0.00013698,2]
[335376922,1724167839010,-500.0,0.00013698,2]
[335376923,1724167839020,-500.0,0.00013698,2]
[335376924,1724167839030,-200.0,0.00013698,2]
[335376925,1724167839041,-500.0,0.00013698,2]
[335376926,1724167839051,-500.0,0.00013698,2]
[335376927,1724167839061,-200.37590733,0.00013698,2]
[335376928,1724167839070,-356.22180046,0.00013698,2]
[335376929,1724167839079,-323.07195861,0.00013698,2]
[335376930,1724167839089,-500.0,0.00013698,2]
[335376931,1724167839100,-500.0,0.00013698,2]
[335376932,1724167839109,-500.0,0.00013698,2]
[335376933,1724167839119,-500.0,0.00013698,2]
[335376934,1724167839128,-500.0,0.00013698,2]
[335376935,1724167839138,-500.0,0.00013698,2]
[335376936,1724167839147,-250.0,0.00013698,2]
[335376937,1724167839157,-155.35283135,0.00013698,2]
[335376938,1724167839166,-544.06785329,0.00013698,2]
[335376939,1724167839175,-154.79103211,0.00013698,2]
[335376940,1724167839185,-174.85504165,0.00013698,2]
[335376941,1724167839194,-288.30937481,0.00013698,2]
[335376942,1724167839204,-898.81779354,0.00013698,2]
[335376943,1724167839215,-422.36012849,0.00013698,2]
[335376944,1724167839225,-154.54409492,0.00013698,2]
[335376945,1724167839234,-728.8710597,0.00013698,2]
[335376946,1724167839243,-2143.02877073,0.00013698,2]
[335376947,1724167839254,-817.60790766,0.00013698,2]
[335376948,1724167839263,-154.54409492,0.00013698,2]
[335376949,1724167839273,-3000.0,0.00013699,2]
[335376950,1724167839283,-37194.1377701,0.00013699,2]
[335376951,1724167839293,-2727.9024512,0.00013699,2]
[335376952,1724167839303,-500.0,0.00013699,2]